[Event "Early-Titled-Tuesday-Blitz-May-07-2024"]
[Site "Chess.com"]
[Date "2024.05.07"]
[Round "2"]
[White "MasterKroket"]
[Black "Barbix1"]
[Result "1-0"]
[WhiteElo "2510"]
[BlackElo "2276"]
[TimeControl "180+1"]
[EndTime "8:20:34 PDT"]
[Termination "MasterKroket won by checkmate"]

1. e4 {[%clk 0:03:00.9]} 1... c5 {[%clk 0:02:58.9]} 2. Nf3 {[%clk 0:03:01.1]}
2... e6 {[%clk 0:02:56.2]} 3. d4 {[%clk 0:03:01]} 3... cxd4 {[%clk 0:02:55.5]}
4. Nxd4 {[%clk 0:03:01.9]} 4... Nf6 {[%clk 0:02:55]} 5. Nc3 {[%clk 0:03:01.6]}
5... Nc6 {[%clk 0:02:55.4]} 6. Ndb5 {[%clk 0:02:56.2]} 6... d6 {[%clk 0:02:55]}
7. Bf4 {[%clk 0:02:55.4]} 7... e5 {[%clk 0:02:54.9]} 8. Bg5 {[%clk 0:02:56]}
8... a6 {[%clk 0:02:54.9]} 9. Na3 {[%clk 0:02:56.2]} 9... b5 {[%clk 0:02:55.2]}
10. Nd5 {[%clk 0:02:56.9]} 10... Be7 {[%clk 0:02:52.8]} 11. Bxf6 {[%clk
0:02:57.2]} 11... Bxf6 {[%clk 0:02:53.5]} 12. c3 {[%clk 0:02:57.9]} 12... Bg5
{[%clk 0:02:46.2]} 13. Nc2 {[%clk 0:02:57.5]} 13... Rb8 {[%clk 0:02:46.7]} 14.
Bd3 {[%clk 0:02:50.7]} 14... O-O {[%clk 0:02:41.6]} 15. h4 {[%clk 0:02:48.6]}
15... Bh6 {[%clk 0:02:37.5]} 16. g4 {[%clk 0:02:43.8]} 16... Bf4 {[%clk
0:02:21.6]} 17. Qf3 {[%clk 0:02:43.3]} 17... a5 {[%clk 0:01:58]} 18. Nxf4 {[%clk
0:02:40.6]} 18... exf4 {[%clk 0:01:58.9]} 19. Qxf4 {[%clk 0:02:41.5]} 19... Ne5
{[%clk 0:01:58.1]} 20. Be2 {[%clk 0:02:41.9]} 20... b4 {[%clk 0:01:52.1]} 21.
cxb4 {[%clk 0:02:39.5]} 21... axb4 {[%clk 0:01:51.1]} 22. Ne3 {[%clk 0:02:32]}
22... b3 {[%clk 0:01:42.2]} 23. a3 {[%clk 0:02:29.1]} 23... Qa5+ {[%clk
0:01:37.7]} 24. Kf1 {[%clk 0:02:24.7]} 24... Qd2 {[%clk 0:01:30.6]} 25. Rb1
{[%clk 0:02:03.5]} 25... Nd3 {[%clk 0:01:24.4]} 26. Bxd3 {[%clk 0:01:55.3]}
26... Qxd3+ {[%clk 0:01:25.3]} 27. Kg2 {[%clk 0:01:56]} 27... Bb7 {[%clk
0:01:16.8]} 28. f3 {[%clk 0:01:55.6]} 28... Rbc8 {[%clk 0:00:56.7]} 29. Rbd1
{[%clk 0:01:47.1]} 29... Qe2+ {[%clk 0:00:53.4]} 30. Kh3 {[%clk 0:01:47.4]}
30... Qxb2 {[%clk 0:00:46.6]} 31. Rh2 {[%clk 0:01:26.8]} 31... Qxa3 {[%clk
0:00:45.5]} 32. Qxd6 {[%clk 0:01:23]} 32... Qa7 {[%clk 0:00:24.2]} 33. Nf5
{[%clk 0:01:18.1]} 33... Rb8 {[%clk 0:00:18.8]} 34. Qe5 {[%clk 0:01:15]} 34...
f6 {[%clk 0:00:12.9]} 35. Qe6+ {[%clk 0:01:15.6]} 35... Kh8 {[%clk 0:00:12]} 36.
Qe7 {[%clk 0:01:01.9]} 36... Rg8 {[%clk 0:00:11.3]} 37. Rd7 {[%clk 0:00:57.9]}
37... Qa1 {[%clk 0:00:03.7]} 38. Nxg7 {[%clk 0:00:50.3]} 38... Qf1+ {[%clk
0:00:03.4]} 39. Kg3 {[%clk 0:00:45.4]} 39... Qe1+ {[%clk 0:00:03.4]} 40. Kf4
{[%clk 0:00:33.3]} 40... Qc1+ {[%clk 0:00:03.4]} 41. Rhd2 {[%clk 0:00:33.6]}
41... Qc3 {[%clk 0:00:02.3]} 42. Nh5 {[%clk 0:00:26.4]} 42... Qe5+ {[%clk
0:00:02.3]} 43. Qxe5 {[%clk 0:00:27.1]} 43... fxe5+ {[%clk 0:00:03.2]} 44. Kxe5
{[%clk 0:00:28]} 44... Bc8 {[%clk 0:00:03.1]} 45. Re7 {[%clk 0:00:21.1]} 45...
Rf8 {[%clk 0:00:03.1]} 46. Nf6 {[%clk 0:00:19.6]} 46... Rxf6 {[%clk 0:00:03.2]}
47. Kxf6 {[%clk 0:00:19.9]} 47... Ba6 {[%clk 0:00:03.4]} 48. Rdd7 {[%clk
0:00:14.5]} 48... b2 {[%clk 0:00:02.4]} 49. Rxh7+ {[%clk 0:00:14]} 49... Kg8
{[%clk 0:00:03]} 50. Rdg7+ {[%clk 0:00:14.7]} 50... Kf8 {[%clk 0:00:03.5]} 51.
Rh8# {[%clk 0:00:15.4]} 1-0

[Event "Early-Titled-Tuesday-Blitz-May-07-2024"]
[Site "Chess.com"]
[Date "2024.05.07"]
[Round "2"]
[White "Roosters19"]
[Black "Zarinur"]
[Result "0-1"]
[WhiteElo "2297"]
[BlackElo "2517"]
[TimeControl "180+1"]
[EndTime "8:20:36 PDT"]
[Termination "Zarinur won on time"]

1. d4 {[%clk 0:03:00.9]} 1... Nf6 {[%clk 0:02:57.4]} 2. Bg5 {[%clk 0:02:59.7]}
2... d5 {[%clk 0:02:57.1]} 3. Nf3 {[%clk 0:02:58]} 3... c6 {[%clk 0:02:57.2]} 4.
e3 {[%clk 0:02:57.9]} 4... Bf5 {[%clk 0:02:55.5]} 5. Nbd2 {[%clk 0:02:57.3]}
5... Nbd7 {[%clk 0:02:54.8]} 6. Ne5 {[%clk 0:02:47.9]} 6... e6 {[%clk
0:02:42.1]} 7. g4 {[%clk 0:02:46]} 7... Bg6 {[%clk 0:02:24.7]} 8. h4 {[%clk
0:02:21.6]} 8... h6 {[%clk 0:02:22.6]} 9. Nxg6 {[%clk 0:02:19.7]} 9... fxg6
{[%clk 0:02:23.5]} 10. Bf4 {[%clk 0:02:19]} 10... Qb6 {[%clk 0:02:15.4]} 11. Bd3
{[%clk 0:02:09.4]} 11... Kf7 {[%clk 0:01:44.4]} 12. Rg1 {[%clk 0:01:54.9]} 12...
Be7 {[%clk 0:00:33.4]} 13. Qf3 {[%clk 0:01:52]} 13... Kg8 {[%clk 0:00:27.3]} 14.
Bxg6 {[%clk 0:01:50.3]} 14... Rf8 {[%clk 0:00:25.8]} 15. Qh3 {[%clk 0:01:31]}
15... c5 {[%clk 0:00:22.1]} 16. O-O-O {[%clk 0:00:43.1]} 16... c4 {[%clk
0:00:20.3]} 17. c3 {[%clk 0:00:38.5]} 17... Qa5 {[%clk 0:00:20.3]} 18. Kb1
{[%clk 0:00:37.4]} 18... Qa6 {[%clk 0:00:16.3]} 19. g5 {[%clk 0:00:27.4]} 19...
hxg5 {[%clk 0:00:15.3]} 20. Bxg5 {[%clk 0:00:27.1]} 20... b5 {[%clk 0:00:15.1]}
21. a3 {[%clk 0:00:20.3]} 21... Qb6 {[%clk 0:00:14.3]} 22. f4 {[%clk 0:00:19.3]}
22... a5 {[%clk 0:00:14]} 23. f5 {[%clk 0:00:18.7]} 23... e5 {[%clk 0:00:14.4]}
24. Bxf6 {[%clk 0:00:17.4]} 24... Bxf6 {[%clk 0:00:15.3]} 25. e4 {[%clk
0:00:17.2]} 25... exd4 {[%clk 0:00:13.2]} 26. exd5 {[%clk 0:00:16.7]} 26... dxc3
{[%clk 0:00:13.1]} 27. bxc3 {[%clk 0:00:16.7]} 27... b4 {[%clk 0:00:13.3]} 28.
Nxc4 {[%clk 0:00:17.1]} 28... Qc5 {[%clk 0:00:12.8]} 29. Qe3 {[%clk 0:00:12.4]}
29... Qxe3 {[%clk 0:00:07.6]} 30. Nxe3 {[%clk 0:00:13.3]} 30... bxc3 {[%clk
0:00:07.3]} 31. Ng4 {[%clk 0:00:12.8]} 31... Rxh4 {[%clk 0:00:06.2]} 32. Nxf6+
{[%clk 0:00:12.4]} 32... Nxf6 {[%clk 0:00:06.8]} 33. Kc2 {[%clk 0:00:11.6]}
33... Rc8 {[%clk 0:00:06]} 34. Rg2 {[%clk 0:00:10.6]} 34... Ra4 {[%clk 0:00:04]}
35. d6 {[%clk 0:00:10.2]} 35... Rxa3 {[%clk 0:00:04.4]} 36. d7 {[%clk
0:00:10.2]} 36... Nxd7 {[%clk 0:00:04.5]} 37. Rxd7 {[%clk 0:00:09.6]} 37... Ra2+
{[%clk 0:00:04.8]} 38. Kc1 {[%clk 0:00:08.4]} 38... Rxg2 {[%clk 0:00:05.7]} 39.
Bf7+ {[%clk 0:00:08.6]} 39... Kf8 {[%clk 0:00:05.4]} 40. Be6 {[%clk 0:00:09.2]}
40... Rc6 {[%clk 0:00:03.2]} 41. Rf7+ {[%clk 0:00:09]} 41... Ke8 {[%clk
0:00:03.5]} 42. Ra7 {[%clk 0:00:09.1]} 42... Rc5 {[%clk 0:00:03.1]} 43. Ra8+
{[%clk 0:00:08.2]} 43... Ke7 {[%clk 0:00:03.6]} 44. Ra7+ {[%clk 0:00:08.8]}
44... Kf6 {[%clk 0:00:04.1]} 45. Rf7+ {[%clk 0:00:09.2]} 45... Ke5 {[%clk
0:00:04.8]} 46. Re7 {[%clk 0:00:08.4]} 46... Kf4 {[%clk 0:00:04.7]} 47. Rf7
{[%clk 0:00:07.5]} 47... c2 {[%clk 0:00:04.8]} 48. f6 {[%clk 0:00:02.8]} 48...
Rg1+ {[%clk 0:00:04.9]} 49. Kd2 {[%clk 0:00:02.5]} 49... c1=Q+ {[%clk
0:00:05.8]} 0-1

[Event "Early-Titled-Tuesday-Blitz-May-07-2024"]
[Site "Chess.com"]
[Date "2024.05.07"]
[Round "2"]
[White "Szparu"]
[Black "Zq1"]
[Result "1-0"]
[WhiteElo "2953"]
[BlackElo "2619"]
[TimeControl "180+1"]
[EndTime "8:20:37 PDT"]
[Termination "Szparu won by resignation"]

1. e4 {[%clk 0:03:00.9]} 1... c5 {[%clk 0:02:58.1]} 2. c3 {[%clk 0:02:49.5]}
2... d5 {[%clk 0:02:57]} 3. exd5 {[%clk 0:02:47.9]} 3... Nf6 {[%clk 0:02:57.1]}
4. Nf3 {[%clk 0:02:39.9]} 4... Nxd5 {[%clk 0:02:56.1]} 5. d4 {[%clk 0:02:40.4]}
5... cxd4 {[%clk 0:02:54.2]} 6. Nxd4 {[%clk 0:02:40.6]} 6... e6 {[%clk
0:02:41.9]} 7. g3 {[%clk 0:02:38.2]} 7... Be7 {[%clk 0:02:38.4]} 8. Bg2 {[%clk
0:02:38.4]} 8... O-O {[%clk 0:02:38.5]} 9. O-O {[%clk 0:02:39]} 9... Nc6 {[%clk
0:02:25.6]} 10. Nxc6 {[%clk 0:02:36.7]} 10... bxc6 {[%clk 0:02:25.2]} 11. c4
{[%clk 0:02:36.1]} 11... Nb4 {[%clk 0:02:20.5]} 12. Nc3 {[%clk 0:02:34]} 12...
Bb7 {[%clk 0:02:09.9]} 13. Be3 {[%clk 0:02:30.3]} 13... Qc7 {[%clk 0:01:59.2]}
14. a3 {[%clk 0:02:04.2]} 14... Rfd8 {[%clk 0:01:52.3]} 15. Qe2 {[%clk
0:01:57.7]} 15... Na6 {[%clk 0:01:31.3]} 16. b4 {[%clk 0:01:57.5]} 16... c5
{[%clk 0:01:25.7]} 17. b5 {[%clk 0:01:46]} 17... Bxg2 {[%clk 0:01:21]} 18. Kxg2
{[%clk 0:01:46.9]} 18... Nb8 {[%clk 0:01:12.2]} 19. Rad1 {[%clk 0:01:34.8]}
19... Nd7 {[%clk 0:01:11.7]} 20. Bf4 {[%clk 0:01:31.2]} 20... Qb7+ {[%clk
0:01:10.8]} 21. Qe4 {[%clk 0:01:29.2]} 21... Qxe4+ {[%clk 0:01:10.1]} 22. Nxe4
{[%clk 0:01:30.1]} 22... Nb6 {[%clk 0:01:09.6]} 23. Bd6 {[%clk 0:01:16.1]} 23...
Bxd6 {[%clk 0:01:04.4]} 24. Nxd6 {[%clk 0:01:16.2]} 24... Rd7 {[%clk 0:00:58.4]}
25. Rd2 {[%clk 0:01:06]} 25... Rad8 {[%clk 0:00:52.8]} 26. Rfd1 {[%clk 0:01:06]}
26... Kf8 {[%clk 0:00:49]} 27. Ne4 {[%clk 0:01:03.8]} 27... Rxd2 {[%clk
0:00:44.4]} 28. Rxd2 {[%clk 0:01:04.7]} 28... Rxd2 {[%clk 0:00:42.8]} 29. Nxd2
{[%clk 0:01:05.6]} 29... Ke7 {[%clk 0:00:36.8]} 30. Kf3 {[%clk 0:01:06.1]} 30...
f5 {[%clk 0:00:36.6]} 31. Ke3 {[%clk 0:01:06.4]} 31... e5 {[%clk 0:00:35.3]} 32.
f3 {[%clk 0:01:04.9]} 32... g5 {[%clk 0:00:34.4]} 33. g4 {[%clk 0:01:02.9]}
33... Ke6 {[%clk 0:00:33.1]} 34. h3 {[%clk 0:01:01.1]} 34... h6 {[%clk
0:00:32.3]} 35. Kd3 {[%clk 0:01:00.2]} 35... e4+ {[%clk 0:00:26.2]} 36. fxe4
{[%clk 0:00:59.4]} 36... f4 {[%clk 0:00:26.5]} 37. Nf3 {[%clk 0:00:51.5]} 37...
Na4 {[%clk 0:00:25.4]} 38. Kc2 {[%clk 0:00:51.3]} 38... Nb6 {[%clk 0:00:20.3]}
39. Kc3 {[%clk 0:00:51.2]} 39... Nc8 {[%clk 0:00:19.7]} 40. a4 {[%clk
0:00:50.3]} 40... Nd6 {[%clk 0:00:17.9]} 41. Kd3 {[%clk 0:00:48.8]} 41... Nb7
{[%clk 0:00:17.8]} 42. h4 {[%clk 0:00:46.6]} 42... gxh4 {[%clk 0:00:16.5]} 43.
Nxh4 {[%clk 0:00:47.5]} 43... Kf6 {[%clk 0:00:14.8]} 44. Nf3 {[%clk 0:00:45.8]}
44... Na5 {[%clk 0:00:13.5]} 45. e5+ {[%clk 0:00:25.2]} 45... Ke6 {[%clk
0:00:12.6]} 46. Ke4 {[%clk 0:00:20.4]} 46... Nxc4 {[%clk 0:00:12.5]} 47. Kxf4
{[%clk 0:00:20.9]} 47... Nb2 {[%clk 0:00:10.4]} 48. a5 {[%clk 0:00:21.1]} 48...
Nc4 {[%clk 0:00:10.1]} 49. a6 {[%clk 0:00:12]} 49... Nb6 {[%clk 0:00:09.8]} 50.
g5 {[%clk 0:00:11.8]} 50... Nd5+ {[%clk 0:00:08]} 51. Ke4 {[%clk 0:00:12]} 51...
Nc3+ {[%clk 0:00:06.7]} 52. Kd3 {[%clk 0:00:11.8]} 52... Nxb5 {[%clk 0:00:06.4]}
53. gxh6 {[%clk 0:00:12]} 53... Kf7 {[%clk 0:00:06.5]} 54. Kc4 {[%clk 0:00:12]}
54... Nc7 {[%clk 0:00:06.6]} 55. Kxc5 {[%clk 0:00:12.3]} 55... Nxa6+ {[%clk
0:00:06.7]} 56. Kd6 {[%clk 0:00:12.3]} 56... Nc7 {[%clk 0:00:06.8]} 57. Kxc7
{[%clk 0:00:12.3]} 1-0

[Event "Early-Titled-Tuesday-Blitz-May-07-2024"]
[Site "Chess.com"]
[Date "2024.05.07"]
[Round "2"]
[White "jk13"]
[Black "JoliyRoger"]
[Result "1/2-1/2"]
[WhiteElo "2675"]
[BlackElo "2404"]
[TimeControl "180+1"]
[EndTime "8:20:40 PDT"]
[Termination "Game drawn by repetition"]

1. e4 {[%clk 0:02:56.1]} 1... c6 {[%clk 0:02:59.6]} 2. Nc3 {[%clk 0:02:55.5]}
2... d5 {[%clk 0:02:58.5]} 3. Nf3 {[%clk 0:02:56.3]} 3... Nf6 {[%clk 0:02:56.7]}
4. e5 {[%clk 0:02:54.9]} 4... Ne4 {[%clk 0:02:57.3]} 5. Ne2 {[%clk 0:02:54.3]}
5... e6 {[%clk 0:02:56.8]} 6. d3 {[%clk 0:02:52.9]} 6... Nc5 {[%clk 0:02:57.4]}
7. Ng3 {[%clk 0:02:46.3]} 7... b6 {[%clk 0:02:56.8]} 8. d4 {[%clk 0:02:46]} 8...
Ncd7 {[%clk 0:02:57]} 9. c4 {[%clk 0:02:45]} 9... Ba6 {[%clk 0:02:52.4]} 10. b3
{[%clk 0:02:44.8]} 10... Be7 {[%clk 0:02:50.7]} 11. Be2 {[%clk 0:02:39.1]} 11...
O-O {[%clk 0:02:51.2]} 12. O-O {[%clk 0:02:38.6]} 12... Bb7 {[%clk 0:02:44.7]}
13. cxd5 {[%clk 0:02:34.6]} 13... cxd5 {[%clk 0:02:44.2]} 14. Be3 {[%clk
0:02:25.2]} 14... Ba6 {[%clk 0:02:44.2]} 15. Bxa6 {[%clk 0:02:17.7]} 15... Nxa6
{[%clk 0:02:44.4]} 16. Rc1 {[%clk 0:02:18.4]} 16... Rc8 {[%clk 0:02:42.7]} 17.
Qe2 {[%clk 0:02:11.1]} 17... Rxc1 {[%clk 0:02:09.2]} 18. Rxc1 {[%clk 0:02:10.7]}
18... Ndb8 {[%clk 0:02:08.4]} 19. Qc2 {[%clk 0:01:45.7]} 19... Nb4 {[%clk
0:01:24.6]} 20. Qb1 {[%clk 0:01:41.6]} 20... N4c6 {[%clk 0:01:20.7]} 21. Ne2
{[%clk 0:01:31.5]} 21... Qd7 {[%clk 0:01:19.7]} 22. h4 {[%clk 0:01:24.3]} 22...
Rc8 {[%clk 0:01:20]} 23. h5 {[%clk 0:01:22.1]} 23... h6 {[%clk 0:01:15.8]} 24.
g4 {[%clk 0:01:13]} 24... Ba3 {[%clk 0:01:14.4]} 25. Rc3 {[%clk 0:00:54.9]}
25... Ne7 {[%clk 0:01:03]} 26. Rxc8+ {[%clk 0:00:40.9]} 26... Qxc8 {[%clk
0:01:02.5]} 27. Ng3 {[%clk 0:00:41.8]} 27... Nd7 {[%clk 0:00:55.3]} 28. g5
{[%clk 0:00:42.2]} 28... hxg5 {[%clk 0:00:55.6]} 29. Nxg5 {[%clk 0:00:42.6]}
29... Nf8 {[%clk 0:00:55.5]} 30. Nf3 {[%clk 0:00:36.2]} 30... Nf5 {[%clk
0:00:49.7]} 31. Nxf5 {[%clk 0:00:35.8]} 31... exf5 {[%clk 0:00:50.6]} 32. h6
{[%clk 0:00:35]} 32... g6 {[%clk 0:00:38.5]} 33. Qf1 {[%clk 0:00:31.6]} 33...
Ne6 {[%clk 0:00:35.8]} 34. Qh3 {[%clk 0:00:24.7]} 34... Kh7 {[%clk 0:00:35.9]}
35. Qh4 {[%clk 0:00:22.8]} 35... Qd8 {[%clk 0:00:26.2]} 36. Bg5 {[%clk
0:00:17.7]} 36... Qd7 {[%clk 0:00:20.5]} 37. Bf6 {[%clk 0:00:16.1]} 37... Bf8
{[%clk 0:00:21]} 38. Ng5+ {[%clk 0:00:14]} 38... Nxg5 {[%clk 0:00:21.5]} 39.
Bxg5 {[%clk 0:00:14.6]} 39... b5 {[%clk 0:00:19.8]} 40. Qh3 {[%clk 0:00:13]}
40... Qc6 {[%clk 0:00:16.3]} 41. Kg2 {[%clk 0:00:11.8]} 41... a5 {[%clk
0:00:16]} 42. Qf3 {[%clk 0:00:11.6]} 42... Qc2 {[%clk 0:00:14.3]} 43. Qxd5
{[%clk 0:00:09.1]} 43... Kg8 {[%clk 0:00:13]} 44. h7+ {[%clk 0:00:09.2]} 44...
Kxh7 {[%clk 0:00:13.6]} 45. Qxf7+ {[%clk 0:00:09.6]} 45... Bg7 {[%clk
0:00:14.4]} 46. Qd5 {[%clk 0:00:08.2]} 46... a4 {[%clk 0:00:11.9]} 47. bxa4
{[%clk 0:00:08.1]} 47... bxa4 {[%clk 0:00:12.5]} 48. e6 {[%clk 0:00:08.2]} 48...
Qe2 {[%clk 0:00:06.9]} 49. e7 {[%clk 0:00:07.9]} 49... Qg4+ {[%clk 0:00:07.4]}
50. Kf1 {[%clk 0:00:06.7]} 50... Qd1+ {[%clk 0:00:07.5]} 51. Kg2 {[%clk
0:00:07.2]} 51... Qg4+ {[%clk 0:00:08.2]} 52. Kf1 {[%clk 0:00:04.6]} 52... Qd1+
{[%clk 0:00:08.1]} 53. Kg2 {[%clk 0:00:04.7]} 53... Qg4+ {[%clk 0:00:08.8]}
1/2-1/2

[Event "Early-Titled-Tuesday-Blitz-May-07-2024"]
[Site "Chess.com"]
[Date "2024.05.07"]
[Round "2"]
[White "zajka-molotok"]
[Black "Anton_Demchenko"]
[Result "0-1"]
[WhiteElo "2538"]
[BlackElo "2923"]
[TimeControl "180+1"]
[EndTime "8:20:43 PDT"]
[Termination "Anton_Demchenko won on time"]

1. d4 {[%clk 0:02:56.8]} 1... Nf6 {[%clk 0:03:00.6]} 2. c4 {[%clk 0:02:56.5]}
2... d6 {[%clk 0:03:01.3]} 3. Nc3 {[%clk 0:02:54.4]} 3... e5 {[%clk 0:03:01.4]}
4. Nf3 {[%clk 0:02:53.5]} 4... Nc6 {[%clk 0:03:00.8]} 5. e4 {[%clk 0:02:45.8]}
5... Bg4 {[%clk 0:03:00.1]} 6. d5 {[%clk 0:02:41.3]} 6... Nd4 {[%clk 0:03:00.1]}
7. Be3 {[%clk 0:02:36.4]} 7... Nxf3+ {[%clk 0:02:53.9]} 8. gxf3 {[%clk
0:02:37.3]} 8... Bd7 {[%clk 0:02:51.2]} 9. h4 {[%clk 0:02:36.4]} 9... g6 {[%clk
0:02:51]} 10. Qb3 {[%clk 0:02:31.8]} 10... b6 {[%clk 0:02:47.8]} 11. Bh3 {[%clk
0:02:30.4]} 11... Bxh3 {[%clk 0:02:45.7]} 12. Rxh3 {[%clk 0:02:31.3]} 12... Qd7
{[%clk 0:02:43.9]} 13. Qb5 {[%clk 0:02:29.9]} 13... Nh5 {[%clk 0:02:39.9]} 14.
Kd2 {[%clk 0:02:17.8]} 14... Be7 {[%clk 0:02:36.6]} 15. b4 {[%clk 0:02:08.3]}
15... a5 {[%clk 0:02:33.3]} 16. Qxd7+ {[%clk 0:01:50.7]} 16... Kxd7 {[%clk
0:02:33.7]} 17. b5 {[%clk 0:01:51.3]} 17... f5 {[%clk 0:02:18.8]} 18. Kc2 {[%clk
0:01:31.8]} 18... Raf8 {[%clk 0:02:19]} 19. Ne2 {[%clk 0:01:25.7]} 19... Rf7
{[%clk 0:02:08.8]} 20. a4 {[%clk 0:01:23.6]} 20... Rhf8 {[%clk 0:01:53.3]} 21.
Rh2 {[%clk 0:01:22.5]} 21... Nf6 {[%clk 0:01:41.9]} 22. Nc3 {[%clk 0:01:16.6]}
22... fxe4 {[%clk 0:01:35.2]} 23. Nxe4 {[%clk 0:01:04.5]} 23... Nh5 {[%clk
0:01:34.4]} 24. Bh6 {[%clk 0:00:54.9]} 24... Rg8 {[%clk 0:01:29.2]} 25. Rh3
{[%clk 0:00:48.5]} 25... Ke8 {[%clk 0:01:20.1]} 26. Rg1 {[%clk 0:00:45.5]} 26...
Bf6 {[%clk 0:00:56.4]} 27. Kd2 {[%clk 0:00:40.4]} 27... Kd7 {[%clk 0:00:52.7]}
28. Ke2 {[%clk 0:00:24.2]} 28... Re8 {[%clk 0:00:52.5]} 29. Rhh1 {[%clk
0:00:20.5]} 29... Bg7 {[%clk 0:00:50.4]} 30. Be3 {[%clk 0:00:18.4]} 30... Rff8
{[%clk 0:00:47.7]} 31. Ng5 {[%clk 0:00:17.5]} 31... Rh8 {[%clk 0:00:45.8]} 32.
Ne6 {[%clk 0:00:17.1]} 32... Bf6 {[%clk 0:00:44.8]} 33. Kd2 {[%clk 0:00:10.1]}
33... Ke7 {[%clk 0:00:45.2]} 34. Rg4 {[%clk 0:00:07.5]} 34... Kd7 {[%clk
0:00:43.9]} 35. Rhg1 {[%clk 0:00:06.5]} 35... Re7 {[%clk 0:00:41.5]} 36. Re4
{[%clk 0:00:04.7]} 36... Rf7 {[%clk 0:00:41.8]} 37. Ke2 {[%clk 0:00:03.9]} 37...
Be7 {[%clk 0:00:40]} 38. Reg4 {[%clk 0:00:03.5]} 38... Rf5 {[%clk 0:00:34.6]}
39. Re4 {[%clk 0:00:02]} 39... Nf6 {[%clk 0:00:31.6]} 40. Bg5 {[%clk 0:00:01.6]}
40... Nxe4 {[%clk 0:00:30.7]} 41. fxe4 {[%clk 0:00:02.5]} 41... Rf7 {[%clk
0:00:30.4]} 42. f3 {[%clk 0:00:01.3]} 42... Rc8 {[%clk 0:00:27.4]} 43. Bh6
{[%clk 0:00:00.4]} 43... Bxh4 {[%clk 0:00:26.9]} 44. Rh1 {[%clk 0:00:00.7]}
44... Bf6 {[%clk 0:00:27.5]} 45. Be3 {[%clk 0:00:01.4]} 45... h5 {[%clk
0:00:26.6]} 46. Bg5 {[%clk 0:00:01.2]} 46... Rg8 {[%clk 0:00:26.6]} 47. Bxf6
{[%clk 0:00:01.1]} 47... Rxf6 {[%clk 0:00:27.5]} 48. Rg1 {[%clk 0:00:01.1]}
48... Rf7 {[%clk 0:00:24.9]} 49. Rg3 {[%clk 0:00:01.7]} 49... Ke8 {[%clk
0:00:25.1]} 50. Rh3 {[%clk 0:00:02.1]} 50... Re7 {[%clk 0:00:24.6]} 51. Ng5
{[%clk 0:00:02.3]} 51... Kf8 {[%clk 0:00:24.6]} 52. Ke3 {[%clk 0:00:02.7]} 52...
Kg7 {[%clk 0:00:24.9]} 53. Ne6+ {[%clk 0:00:02.9]} 53... Kh6 {[%clk 0:00:25.1]}
54. Rg3 {[%clk 0:00:01.5]} 54... g5 {[%clk 0:00:25.3]} 55. Rh3 {[%clk
0:00:01.2]} 55... Rg6 {[%clk 0:00:24.4]} 56. Rg3 {[%clk 0:00:00.8]} 56... h4
{[%clk 0:00:22.5]} 57. Rh3 {[%clk 0:00:00.7]} 57... Kh5 {[%clk 0:00:22.2]} 58.
Nd8 {[%clk 0:00:00.5]} 58... Rf6 {[%clk 0:00:21]} 0-1

[Event "Early-Titled-Tuesday-Blitz-May-07-2024"]
[Site "Chess.com"]
[Date "2024.05.07"]
[Round "2"]
[White "PenguinPacks"]
[Black "th3d4rkness"]
[Result "0-1"]
[WhiteElo "2461"]
[BlackElo "2208"]
[TimeControl "180+1"]
[EndTime "8:20:43 PDT"]
[Termination "th3d4rkness won by checkmate"]

1. e4 {[%clk 0:03:00.9]} 1... c5 {[%clk 0:02:59.1]} 2. Nf3 {[%clk 0:02:58.8]}
2... Nc6 {[%clk 0:02:58.6]} 3. Bb5 {[%clk 0:02:58.5]} 3... Na5 {[%clk
0:02:58.3]} 4. O-O {[%clk 0:02:56.2]} 4... a6 {[%clk 0:02:58.4]} 5. Be2 {[%clk
0:02:56.4]} 5... b5 {[%clk 0:02:50.6]} 6. c3 {[%clk 0:02:56.7]} 6... Bb7 {[%clk
0:02:49.6]} 7. Bd3 {[%clk 0:02:47.6]} 7... c4 {[%clk 0:02:46.9]} 8. Bc2 {[%clk
0:02:47.6]} 8... g6 {[%clk 0:02:44.8]} 9. d4 {[%clk 0:02:47.4]} 9... cxd3 {[%clk
0:02:44.3]} 10. Qxd3 {[%clk 0:02:48.1]} 10... Bg7 {[%clk 0:02:42.6]} 11. Rd1
{[%clk 0:02:46.6]} 11... d6 {[%clk 0:02:40.6]} 12. Bg5 {[%clk 0:02:45.8]} 12...
Nf6 {[%clk 0:02:34.4]} 13. Qe3 {[%clk 0:02:45.9]} 13... Qc7 {[%clk 0:02:26.1]}
14. e5 {[%clk 0:02:33.7]} 14... Nc4 {[%clk 0:02:19.4]} 15. Qe2 {[%clk
0:02:24.2]} 15... Nxe5 {[%clk 0:02:10]} 16. Nxe5 {[%clk 0:02:20.9]} 16... dxe5
{[%clk 0:02:09.7]} 17. Re1 {[%clk 0:02:21.6]} 17... O-O {[%clk 0:01:44.9]} 18.
Nd2 {[%clk 0:02:21.2]} 18... h6 {[%clk 0:01:40.4]} 19. Bh4 {[%clk 0:02:18.5]}
19... Rad8 {[%clk 0:01:29.3]} 20. Rad1 {[%clk 0:02:11.3]} 20... Rd7 {[%clk
0:01:24.4]} 21. Bg3 {[%clk 0:02:05.1]} 21... Qc6 {[%clk 0:01:10.5]} 22. Nf3
{[%clk 0:01:53.7]} 22... Rxd1 {[%clk 0:01:09.2]} 23. Rxd1 {[%clk 0:01:52]} 23...
e4 {[%clk 0:01:08]} 24. Nd4 {[%clk 0:01:43]} 24... Qc4 {[%clk 0:01:02.9]} 25.
Qe3 {[%clk 0:01:38.3]} 25... Qxa2 {[%clk 0:00:54.6]} 26. b4 {[%clk 0:01:31.3]}
26... Qc4 {[%clk 0:00:46.4]} 27. Bb3 {[%clk 0:01:29.5]} 27... Qc8 {[%clk
0:00:44.3]} 28. Ne2 {[%clk 0:01:25.3]} 28... e6 {[%clk 0:00:36.3]} 29. Nf4
{[%clk 0:01:20.5]} 29... Nd5 {[%clk 0:00:34.7]} 30. Nxd5 {[%clk 0:01:14.4]}
30... exd5 {[%clk 0:00:34.4]} 31. Rc1 {[%clk 0:01:11.5]} 31... f5 {[%clk
0:00:29.9]} 32. Qb6 {[%clk 0:01:08.9]} 32... Qc6 {[%clk 0:00:28.9]} 33. Qe3
{[%clk 0:01:08.5]} 33... Kh7 {[%clk 0:00:28.4]} 34. h4 {[%clk 0:01:05.3]} 34...
Rc8 {[%clk 0:00:24.2]} 35. Bf4 {[%clk 0:01:03]} 35... d4 {[%clk 0:00:23.4]} 36.
Qg3 {[%clk 0:00:59.2]} 36... dxc3 {[%clk 0:00:21.5]} 37. Bc2 {[%clk 0:00:59.1]}
37... Rd8 {[%clk 0:00:20.1]} 38. Be3 {[%clk 0:00:56.5]} 38... Qd5 {[%clk
0:00:18.6]} 39. h5 {[%clk 0:00:54.6]} 39... g5 {[%clk 0:00:18.4]} 40. Qc7 {[%clk
0:00:54.8]} 40... Qd7 {[%clk 0:00:17.9]} 41. Qb6 {[%clk 0:00:54.8]} 41... Rc8
{[%clk 0:00:15.8]} 42. Qg6+ {[%clk 0:00:54.3]} 42... Kh8 {[%clk 0:00:15.7]} 43.
g4 {[%clk 0:00:51.7]} 43... f4 {[%clk 0:00:14.9]} 44. Rd1 {[%clk 0:00:50.1]}
44... Qe8 {[%clk 0:00:11.1]} 45. Qxe8+ {[%clk 0:00:37.1]} 45... Rxe8 {[%clk
0:00:11.3]} 46. Bc5 {[%clk 0:00:38]} 46... e3 {[%clk 0:00:09.3]} 47. fxe3 {[%clk
0:00:38.9]} 47... fxe3 {[%clk 0:00:08.4]} 48. Re1 {[%clk 0:00:36.9]} 48... e2
{[%clk 0:00:07.9]} 49. Kf2 {[%clk 0:00:36.1]} 49... Rf8+ {[%clk 0:00:06.5]} 50.
Ke3 {[%clk 0:00:31.9]} 50... Re8+ {[%clk 0:00:06.5]} 51. Kd3 {[%clk 0:00:32.4]}
51... Bf3 {[%clk 0:00:05.9]} 52. Be3 {[%clk 0:00:23.7]} 52... Bxg4 {[%clk
0:00:05.9]} 53. Bb3 {[%clk 0:00:21.6]} 53... Bxh5 {[%clk 0:00:05.3]} 54. Kc2
{[%clk 0:00:21.9]} 54... Rd8 {[%clk 0:00:04.8]} 55. Rh1 {[%clk 0:00:19.7]} 55...
Rd1 {[%clk 0:00:03.2]} 56. Rxh5 {[%clk 0:00:12.9]} 56... e1=Q {[%clk 0:00:03.4]}
57. Bd4 {[%clk 0:00:12.8]} 57... Qe2+ {[%clk 0:00:03.5]} 58. Kxc3 {[%clk
0:00:12.5]} 58... Bxd4# {[%clk 0:00:02.9]} 0-1